bitfinex-derivatives/quotes_ETHF0:USTF0_20250115
["timestamp","ask_amount","ask_price","bid_price","bid_amount"]
[1736934169085,0.4915,3218.3,3217.5,2.45106609]
[1736934169279,0.80233,3218.3,3217.9,0.31086]
[1736934169478,0.4915,3218.3,3218.0,0.31085]
[1736934169685,0.80233,3218.3,3218.0,0.31085]
[1736934170184,0.4915,3218.3,3218.0,0.31085]
[1736934170381,0.80233,3218.3,3218.0,0.31085]
[1736934170590,3.3918152,3218.2,3218.0,0.31085]
[1736934172178,3.3918152,3218.2,3217.5,3.70006609]
[1736934172379,3.3918152,3218.2,3217.5,1.249]
[1736934172380,3.2078,3218.0,3217.5,1.249]
[1736934172582,0.31087,3217.9,3217.6,0.31088]
[1736934172782,3.86222394,3217.9,3217.6,0.31088]
[1736934173089,6.00242003,3217.9,3217.2,0.946]
[1736934173284,3.2078,3217.6,3217.1,0.4695]
[1736934173488,0.31092,3217.4,3217.1,0.78044]
[1736934174191,3.3969632,3217.5,3217.4,0.31091]
[1736934174387,3.3969632,3217.5,3217.1,0.4744]
[1736934174597,3.3969632,3217.5,3217.4,0.31091]
[1736934174792,3.2078,3217.6,3217.1,0.4744]
[1736934174980,3.2078,3217.6,3217.5,0.3109]
[1736934175487,0.79427,3217.9,3217.5,0.3109]
[1736934175694,0.79427,3217.9,3217.6,0.31089]
[1736934175890,3.52887043,3217.8,3217.6,0.31089]
[1736934176285,3.83974043,3217.8,3217.6,0.31089]
[1736934176590,3.83974043,3217.8,3217.1,1.7234]
[1736934176788,0.31089,3217.7,3217.4,0.31091]
[1736934177991,2.45106609,3217.2,3216.9,1.0]
[1736934178192,0.31095,3217.0,3216.9,1.0]
[1736934178697,3.54899375,3217.0,3216.9,1.0]
[1736934179197,0.31095,3217.0,3216.9,1.0]
[1736934179393,3.97355,3217.1,3216.9,1.0]
[1736934179593,0.31095,3217.0,3216.9,1.0]
[1736934180098,3.2078,3217.1,3216.9,1.31095]
[1736934180391,3.2078,3217.1,3216.9,2.22156]
[1736934181495,0.31095,3217.0,3216.9,1.4532]
[1736934181694,0.31095,3217.0,3216.9,1.0]
[1736934182390,0.79275,3217.0,3216.9,1.0]
[1736934183894,4.10326991,3217.0,3216.9,1.0]
[1736934185096,3.2078,3217.1,3216.9,1.0]
[1736934185097,3.51875,3217.1,3216.9,1.0]
[1736934185599,3.2078,3217.1,3216.9,1.31096]
[1736934185801,3.2078,3217.1,3217.0,0.31095]
[1736934185998,3.2078,3217.1,3217.0,1.24235]
[1736934187293,3.2078,3217.1,3217.0,1.71615]
[1736934189997,0.4681,3217.7,3217.0,5.862]
[1736934190197,3.51864,3218.2,3217.9,0.31086]
[1736934190500,3.51864,3218.2,3218.0,0.31085]
[1736934190694,3.51864,3218.2,3218.1,40.8]
[1736934191399,0.31087,3217.9,3217.7,0.31088]
[1736934191598,2.45106609,3218.1,3217.6,0.77389]
[1736934191803,0.31087,3217.9,3217.7,40.8]
[1736934192201,3.4375665,3218.0,3217.7,40.8]
[1736934192602,0.31087,3217.9,3217.7,40.8]
[1736934192901,0.31087,3217.8,3217.7,41.11088]
[1736934193101,0.31087,3217.9,3217.7,41.11088]
[1736934194697,3.4375665,3218.0,3217.7,40.8]
[1736934195001,0.31086,3217.9,3217.7,40.8]
[1736934195198,0.31086,3217.9,3217.7,41.11088]
[1736934196196,3.7484265,3218.0,3217.8,0.31087]
[1736934197298,0.31087,3217.9,3217.7,40.8]
[1736934197802,0.31087,3217.9,3217.7,41.11088]
[1736934198398,2.45106609,3217.8,3217.5,3.2078]
[1736934198596,0.80518,3217.7,3217.5,3.5187]
[1736934198901,0.4943,3217.7,3217.6,0.31089]
[1736934199295,2.45106609,3218.1,3217.5,3.2078]
[1736934199489,2.91476609,3218.1,3217.6,0.9137]
[1736934199709,3.27660873,3218.0,3217.8,0.31087]
[1736934200302,3.27660873,3218.0,3217.7,0.31088]
[1736934200498,3.27660873,3218.0,3217.9,0.31086]
[1736934203300,0.4637,3218.1,3217.6,0.9137]
[1736934203501,0.4637,3218.1,3218.0,0.31085]
[1736934204200,0.4637,3218.1,3217.9,0.31086]
[1736934204904,0.4637,3218.1,3218.0,0.31085]
[1736934205099,3.2078,3218.2,3218.1,0.31085]
[1736934206600,3.2078,3218.2,3218.0,0.31085]
[1736934206806,3.2078,3218.2,3217.7,0.494]
[1736934207100,3.2078,3218.2,3218.1,0.31085]
[1736934211505,0.9394,3218.5,3218.4,0.31082]
[1736934212406,3.2078,3218.6,3218.5,0.31081]
[1736934213007,3.53396,3219.0,3218.2,0.997]
[1736934213206,3.2232,3219.0,3218.8,0.31077]
[1736934213412,3.36075423,3218.9,3218.8,0.31077]
[1736934214913,3.2232,3219.0,3218.9,0.31077]
[1736934216007,0.0154,3219.0,3218.9,2.76183609]
[1736934216207,0.0154,3219.0,3218.9,4.21243609]
[1736934218412,3.2078,3219.4,3218.9,9.21243609]
[1736934218610,3.2078,3219.9,3219.7,0.31068]
[1736934218808,3.2078,3219.9,3219.2,6.91886609]
[1736934219013,3.2078,3219.9,3219.8,0.31068]
[1736934219813,0.9519,3220.1,3220.0,0.31066]
[1736934220012,0.9519,3220.1,3219.9,0.31067]
[1736934220210,0.9519,3220.1,3219.7,0.9229]
[1736934220418,0.9519,3220.1,3220.0,0.31066]
[1736934221211,3.2078,3220.3,3220.1,0.31065]
[1736934221615,3.37480214,3220.2,3220.1,0.31065]
[1736934222210,3.37480214,3220.2,3219.8,0.453]
[1736934222417,0.483,3220.1,3219.9,0.31067]
[1736934222808,0.483,3220.1,3219.8,0.453]
[1736934223018,0.483,3220.1,3220.0,0.31066]
[1736934223409,0.468,3220.2,3220.1,0.31065]
[1736934223717,0.468,3220.2,3220.0,0.31066]
[1736934223906,0.468,3220.2,3220.1,0.31065]
[1736934225114,0.468,3220.2,3219.8,0.453]
[1736934225315,0.468,3220.2,3220.0,0.31066]
[1736934225611,0.9591,3220.2,3220.1,0.31065]
[1736934226006,0.9591,3220.2,3220.0,0.31066]
[1736934226314,0.9591,3220.2,3219.8,0.453]
[1736934226519,0.9591,3220.2,3220.1,0.31065]
[1736934226921,0.9591,3220.2,3220.0,0.31066]
[1736934227125,0.9591,3220.2,3219.8,0.453]
[1736934227517,0.31066,3220.1,3219.8,0.76368]
[1736934227824,0.9591,3220.2,3219.8,0.453]
[1736934228013,1.26975,3220.2,3219.9,0.31067]
[1736934229616,0.9591,3220.2,3219.9,0.31067]
[1736934229921,1.26974,3220.2,3219.9,0.31067]
[1736934230517,4.47754,3220.2,3220.0,0.31066]
[1736934230724,4.1669,3220.2,3219.5,3.2078]
[1736934230920,0.31067,3220.0,3219.7,0.31069]
[1736934231621,0.31067,3219.9,3219.7,0.31069]
[1736934232320,4.1669,3220.2,3219.5,3.2078]
[1736934232522,0.31067,3220.0,3219.8,0.31068]
[1736934233820,4.1669,3220.2,3219.5,3.2078]
[1736934234127,0.31068,3219.9,3219.7,0.31069]
[1736934234523,0.31067,3220.0,3219.8,0.31068]
[1736934235025,4.1669,3220.2,3219.5,3.2078]
[1736934235220,0.3107,3219.7,3219.5,3.5185]
[1736934235428,1.2775,3219.6,3219.5,3.51851]
[1736934235629,0.9668,3219.6,3219.5,3.51851]
[1736934236223,0.9668,3219.6,3219.3,42.09562]
[1736934236417,0.9668,3219.6,3219.0,0.4821]
[1736934236724,0.31075,3219.1,3218.9,1.56376]
[1736934237023,0.4722,3219.0,3218.9,0.31077]
[1736934237229,0.9668,3219.0,3218.9,0.31077]
[1736934237431,0.9668,3219.0,3218.9,41.11077]
[1736934237628,1.27756,3219.0,3218.9,41.11077]
[1736934237822,0.31076,3219.1,3218.9,41.11077]
[1736934238430,3.2078,3219.3,3218.9,41.11077]
[1736934238731,3.2078,3219.3,3218.6,4.4608]
[1736934238732,3.32940162,3219.2,3218.6,3.51859]
[1736934238928,0.31078,3218.8,3218.6,3.51859]
[1736934239130,2.45106609,3218.8,3218.6,3.2078]
[1736934239423,2.45106609,3218.8,3218.2,3.2078]
[1736934239424,0.31083,3218.3,3218.2,3.2078]
[1736934239930,0.31083,3218.3,3218.2,40.8]
[1736934240829,0.31085,3218.1,3217.8,0.31087]
[1736934241132,0.954,3218.2,3217.8,0.31087]
[1736934241431,0.31085,3218.1,3217.8,0.31087]
[1736934241623,3.68973127,3218.1,3217.8,0.31087]
[1736934242233,3.37888127,3218.1,3218.0,0.31086]
[1736934242436,3.2078,3218.4,3218.3,0.31083]
[1736934246641,3.2078,3218.4,3218.3,41.11083]
[1736934249342,3.2078,3218.4,3218.3,43.56189609]
[1736934249741,3.2078,3218.4,3218.3,41.11083]
[1736934252940,3.2078,3218.4,3218.3,40.8]
[1736934253139,3.2078,3218.4,3218.3,41.11083]
[1736934254739,3.2078,3218.4,3218.3,40.8]
[1736934254938,0.31085,3218.1,3217.9,1.28496]
[1736934255742,3.2078,3218.4,3217.9,1.28496]
[1736934256146,0.31084,3218.2,3218.0,0.31085]
[1736934257544,3.2078,3218.4,3217.9,0.9741]
[1736934257851,3.72158393,3218.3,3217.9,0.9741]
[1736934258047,3.72158393,3218.3,3217.9,1.28496]
[1736934258048,0.31084,3218.2,3217.9,1.28496]
[1736934258348,0.31084,3218.2,3218.0,0.31085]
[1736934259050,3.41075393,3218.3,3217.9,0.9741]
[1736934259252,0.31087,3217.8,3217.7,40.8]
[1736934259451,2.92936609,3218.2,3217.7,40.8]
[1736934259744,0.31086,3218.0,3217.7,41.11088]
[1736934260147,3.3551522,3217.9,3217.7,40.8]
[1736934260345,0.31087,3217.8,3217.7,40.8]
[1736934261347,0.4888,3218.0,3217.7,40.8]
[1736934261348,0.31087,3217.9,3217.7,41.11088]
[1736934261745,3.60908136,3217.9,3217.7,41.11088]
[1736934261946,3.29821136,3217.9,3217.7,40.8]
[1736934262146,0.31087,3217.8,3217.7,40.8]
[1736934262349,0.4888,3218.0,3217.7,40.8]
[1736934262548,3.51865,3218.1,3217.9,0.31086]
[1736934263051,3.2078,3218.1,3218.0,0.31086]
[1736934263947,3.2078,3218.1,3217.7,40.8]
[1736934264145,3.2078,3218.1,3217.9,0.31086]
[1736934264656,3.51865,3218.1,3217.9,0.31086]
[1736934264855,0.31086,3218.0,3217.8,0.31087]
[1736934266049,3.2078,3218.1,3217.8,0.31087]
[1736934266249,0.31086,3218.0,3217.8,0.31087]
[1736934266451,0.31086,3217.9,3217.7,41.11088]
[1736934266646,0.31086,3218.0,3217.8,0.31087]
[1736934267047,0.31086,3218.0,3217.9,0.4858]
[1736934267957,3.2078,3218.1,3217.9,0.4858]
[1736934268158,3.2078,3218.1,3218.0,0.31086]
[1736934268455,3.51865,3218.1,3218.0,0.4659]
[1736934269753,3.51865,3218.1,3218.0,0.77676]
[1736934269949,3.2078,3218.1,3218.0,0.77676]
[1736934271355,3.2078,3218.5,3218.4,0.31082]
[1736934274155,3.2078,3218.5,3218.1,1.248]
[1736934274356,0.31084,3218.2,3218.0,1.25345]
[1736934274657,3.2078,3218.1,3218.0,0.4659]
[1736934274851,0.31083,3218.3,3218.1,0.31085]
[1736934275254,3.56350447,3218.3,3218.1,0.31085]
[1736934275956,3.25267447,3218.3,3218.1,0.31085]
[1736934276153,3.25267447,3218.3,3218.2,0.31084]
[1736934277959,3.25267447,3218.3,3218.0,0.4659]
[1736934278158,3.25267447,3218.3,3218.2,0.31084]
[1736934279763,3.2078,3218.5,3218.0,0.4659]
[1736934279950,3.2078,3218.5,3218.4,0.31082]
[1736934281455,3.51861,3218.5,3218.4,0.31082]
[1736934281757,3.2078,3218.5,3218.0,0.4659]
[1736934281952,0.31082,3218.4,3218.2,0.31083]
[1736934282159,3.7808255,3218.4,3218.2,0.31083]
[1736934282557,3.7808255,3218.4,3218.0,0.4659]
[1736934282859,0.31082,3218.4,3218.2,0.31083]
[1736934284458,0.31083,3218.3,3218.1,0.31084]
[1736934284646,0.31083,3218.3,3218.1,0.31085]
[1736934285162,0.31083,3218.3,3218.2,0.31084]
[1736934286356,1.26812,3218.4,3218.2,0.31083]
[1736934287162,1.26812,3218.4,3218.1,0.31085]
[1736934287362,1.26812,3218.4,3218.2,0.31083]
[1736934287960,1.26812,3218.4,3218.0,0.4659]
[1736934288164,1.26812,3218.4,3218.3,0.31083]
[1736934288559,0.9573,3218.4,3218.3,0.31083]
[1736934289661,1.26812,3218.4,3218.3,0.31083]
[1736934289853,0.9573,3218.4,3218.3,0.31083]
[1736934290258,3.2078,3218.5,3218.4,0.31082]
[1736934291658,3.2078,3218.5,3218.4,41.11082]
[1736934292766,3.51857,3218.9,3218.8,0.31078]
[1736934293165,3.2078,3218.9,3218.8,0.31078]
[1736934293568,3.51857,3218.9,3218.8,0.31078]
[1736934293770,3.2078,3218.9,3218.6,0.4876]
[1736934293976,3.2078,3218.9,3218.8,0.31078]
[1736934295470,3.51857,3218.9,3218.7,0.31078]
[1736934297074,0.31078,3218.8,3218.6,0.79839]
[1736934297474,3.2078,3218.9,3218.6,0.79839]
[1736934297674,0.31078,3218.8,3218.6,0.79839]
[1736934297873,3.2078,3218.9,3218.6,0.4876]
[1736934298073,0.31078,3218.8,3218.7,0.31078]
[1736934298476,3.51857,3218.9,3218.8,0.31078]
[1736934300278,3.2078,3218.9,3218.6,0.4876]
[1736934300575,0.31084,3218.2,3218.0,8.08602642]
[1736934300783,2.45106609,3218.4,3218.0,8.08602642]
[1736934301081,3.51865,3218.1,3218.0,41.11085]
[1736934301273,3.51865,3218.1,3218.0,40.8]
[1736934301681,3.2078,3218.1,3218.0,40.8]
[1736934301978,3.51865,3218.1,3217.9,0.31086]
[1736934302177,3.2078,3218.1,3217.8,0.9698]
[1736934302384,3.2078,3218.1,3217.9,0.31086]
[1736934302582,3.2078,3218.1,3218.0,0.31086]
[1736934303778,0.7769,3219.1,3218.0,0.31086]
[1736934303779,3.2078,3218.5,3218.4,0.31082]
[1736934304289,3.2078,3218.5,3218.4,41.11082]
[1736934310199,3.2078,3218.9,3218.8,0.31078]
[1736934310793,3.2078,3219.3,3219.2,0.31074]
[1736934310987,0.80011,3219.5,3219.4,0.31072]
[1736934311289,0.4894,3219.5,3218.8,0.77695]
[1736934311491,0.4894,3219.5,3219.4,0.31072]
[1736934313894,0.4894,3219.5,3218.7,3.2078]
[1736934314090,3.2078,3219.4,3219.2,0.31073]
[1736934314694,5.65886609,3219.4,3219.2,0.31073]
[1736934315292,5.96958609,3219.4,3219.2,0.31073]
[1736934315602,5.65886609,3219.4,3219.3,0.31073]
[1736934316791,5.96958609,3219.4,3219.1,0.31074]
[1736934316999,0.31074,3219.2,3218.7,4.4438]
[1736934317492,0.4704,3219.3,3218.7,4.4438]
[1736934317688,3.2078,3219.0,3218.5,1.406]
[1736934317899,0.4598,3218.9,3218.7,0.31078]
[1736934318101,0.4598,3218.9,3218.5,1.406]
[1736934318300,0.4598,3218.9,3218.8,0.31078]
[1736934320302,0.4598,3218.9,3218.7,0.31078]
[1736934320491,0.4598,3218.9,3218.8,0.31078]
[1736934320688,3.2078,3219.0,3218.5,1.406]
[1736934320893,3.2078,3219.0,3218.9,0.31077]
[1736934323701,0.31075,3219.1,3218.9,0.31077]
[1736934323905,3.6721,3219.2,3218.5,1.406]
[1736934324103,6.01649248,3219.1,3218.5,1.406]
[1736934324401,0.3108,3218.6,3218.5,1.406]
[1736934324701,0.3108,3218.7,3218.5,0.4533]
[1736934324904,0.3108,3218.7,3218.5,0.76411]
[1736934325705,0.31078,3218.8,3218.5,0.76411]
[1736934326104,0.31079,3218.7,3218.5,0.76411]
[1736934326305,0.46,3219.0,3218.6,0.31079]
[1736934326508,0.31078,3218.8,3218.6,0.31079]
[1736934327207,0.31077,3218.9,3218.7,0.31079]
[1736934327409,0.46,3219.0,3218.5,0.4533]
[1736934327611,0.31077,3218.9,3218.6,0.31079]
[1736934327898,0.46,3219.0,3218.8,0.31077]
[1736934327899,0.31077,3219.0,3218.8,0.31077]
[1736934328103,0.31075,3219.1,3218.8,0.31077]
[1736934328304,3.6721,3219.2,3218.5,0.4533]
[1736934328609,3.6721,3219.2,3219.1,0.31075]
[1736934329107,3.2078,3219.2,3219.1,0.31075]
[1736934333713,3.2078,3219.2,3219.1,41.11075]
[1736934337605,3.51854,3219.2,3219.0,0.77466]
[1736934337913,9.05141959,3219.2,3218.5,8.08602642]
[1736934338213,5.96966609,3218.6,3218.5,4.87822642]
[1736934338399,3.2078,3218.6,3218.5,5.18903642]
[1736934338604,0.31079,3218.7,3218.5,5.64423642]
[1736934338802,0.31078,3218.8,3218.6,0.3108]
[1736934339008,0.3108,3218.7,3218.5,0.766]
[1736934339403,0.31078,3218.8,3218.6,0.31079]
[1736934340215,3.6961,3219.0,3218.5,0.4552]
[1736934340519,3.6961,3219.0,3218.9,0.31077]
[1736934340520,3.2078,3219.0,3218.9,0.31077]
[1736934341212,3.2078,3219.4,3218.9,40.8]
[1736934341414,3.2078,3219.4,3219.3,0.31073]
[1736934343009,3.2078,3219.4,3219.2,0.31073]
[1736934343210,3.2078,3219.4,3219.3,0.31073]
[1736934344016,0.76951,3219.5,3219.3,0.31073]
[1736934344319,3.2078,3219.4,3219.3,0.31073]
[1736934348111,3.2078,3219.4,3219.0,0.4561]
[1736934348317,3.2078,3219.4,3219.3,0.31073]
[1736934349115,3.51852,3219.4,3219.2,0.31073]
[1736934350217,0.31073,3219.3,3219.1,0.31074]
[1736934350611,0.9307,3219.2,3219.0,0.4561]
[1736934350811,0.31078,3218.8,3218.7,3.2078]
[1736934351017,3.2078,3218.9,3218.2,7.31733963]
[1736934351220,0.3108,3218.6,3218.4,41.11082]
[1736934351514,0.4913,3218.5,3218.4,41.11082]
[1736934352615,3.2078,3218.9,3218.4,43.25106609]
[1736934352813,3.2078,3218.9,3218.8,0.31078]
[1736934353017,3.2078,3219.4,3218.8,0.31078]
[1736934353318,3.2078,3219.4,3219.3,0.31073]
[1736934353914,3.2078,3219.4,3219.3,41.11073]
[1736934359921,0.3107,3219.6,3219.4,0.31071]
[1736934360111,3.2078,3219.5,3219.4,0.31071]
[1736934360518,0.3107,3219.6,3219.4,0.31071]
[1736934360926,3.2078,3219.5,3219.4,0.31071]
[1736934361128,3.2078,3219.5,3219.4,0.78041]
[1736934362324,3.2078,3219.5,3219.4,41.58041]
[1736934362825,3.2078,3219.5,3219.4,0.31071]
[1736934363215,3.2078,3219.5,3219.4,41.11071]
[1736934363622,3.2078,3219.5,3219.4,0.31071]
[1736934364927,3.2078,3219.5,3219.4,0.78241]
[1736934365328,3.2078,3220.0,3219.4,0.4717]
[1736934365531,0.4947,3220.2,3220.1,0.31065]
[1736934365820,0.4947,3220.2,3220.1,41.11065]
[1736934366026,0.80534,3220.2,3220.1,40.8]
[1736934368126,8.82604752,3220.2,3219.2,3.2078]
[1736934368331,3.2078,3219.7,3219.2,3.2078]
[1736934368532,0.4541,3219.6,3219.2,44.0078]
[1736934368832,0.9319,3219.6,3219.3,0.31073]
[1736934369131,0.31071,3219.5,3219.3,0.31072]
[1736934369331,1.24261,3219.6,3219.4,0.31072]
[1736934370036,1.2426,3219.6,3219.4,0.31071]
[1736934370426,0.9319,3219.6,3219.2,40.8]
[1736934370629,3.51849,3219.7,3219.5,0.31071]
[1736934371734,0.31071,3219.6,3219.2,40.8]
[1736934372031,3.2078,3219.7,3219.4,0.31071]
[1736934372437,0.3107,3219.6,3219.4,0.31071]
[1736934372832,0.3107,3219.6,3219.3,0.31073]
[1736934374444,3.2078,3219.7,3219.2,40.8]
[1736934374645,0.3107,3219.6,3219.3,0.31072]
[1736934375245,0.3107,3219.6,3219.2,40.8]
[1736934375441,3.5185,3219.7,3219.4,0.31071]
[1736934375641,3.5185,3219.7,3219.2,40.8]
[1736934375851,3.5185,3219.7,3219.5,0.31071]
[1736934376145,0.3107,3219.6,3219.4,0.31072]
[1736934376546,3.2078,3219.7,3219.2,40.8]
[1736934376842,5.65886609,3219.3,3218.4,4.87822642]
[1736934377046,0.4938,3219.5,3218.4,4.87822642]
[1736934377047,0.31081,3218.5,3218.4,4.87822642]
[1736934377437,0.31081,3218.5,3218.4,45.67822642]
[1736934377643,0.31081,3218.5,3218.4,40.8]
[1736934378746,5.65886609,3218.5,3218.0,3.2078]
[1736934378955,3.2078,3218.5,3218.0,3.2078]
[1736934379156,0.31083,3218.3,3218.0,3.51865]
[1736934379450,0.31083,3218.3,3218.1,40.8]
[1736934381954,0.31084,3218.2,3218.1,40.8]
[1736934384759,5.65886609,3218.5,3218.1,40.8]
[1736934384760,0.31083,3218.3,3218.1,40.8]
[1736934385245,0.31084,3218.2,3218.1,40.8]
[1736934387749,0.31085,3218.1,3217.8,1.23517]
[1736934388157,0.31085,3218.1,3217.9,41.11086]
[1736934388550,0.31085,3218.1,3217.9,40.8]
[1736934388760,0.31086,3218.0,3217.9,40.8]
[1736934389458,0.31089,3217.6,3217.5,3.2078]
[1736934389859,0.31089,3217.6,3217.5,44.0078]
[1736934390157,0.31089,3217.6,3217.5,3.2078]
[1736934390354,5.65886609,3217.8,3217.1,3.2078]
[1736934390555,0.484,3217.7,3217.1,44.483]
[1736934390758,0.31092,3217.4,3217.1,44.79394]
[1736934391260,0.31092,3217.3,3217.1,44.483]
[1736934391463,0.31092,3217.4,3217.1,44.79394]
[1736934391665,0.494,3217.6,3217.1,44.79394]
[1736934391866,0.31091,3217.5,3217.1,44.79394]
[1736934392067,0.31091,3217.4,3217.2,0.31093]
[1736934392565,0.31091,3217.4,3217.1,41.58614]
[1736934393159,3.2078,3217.3,3217.1,41.58613]
[1736934393464,0.31093,3217.2,3217.1,40.8]
[1736934393667,0.31097,3216.9,3216.6,0.31098]
[1736934393854,0.31095,3217.0,3216.8,0.31097]
[1736934394055,3.2078,3216.9,3216.5,0.9104]
[1736934394455,0.31099,3216.6,3216.5,0.9104]
[1736934394668,0.31099,3216.6,3216.5,41.2584]
[1736934394965,0.311,3216.5,3216.4,0.4854]
[1736934395759,5.65886609,3216.9,3216.4,0.4854]
[1736934395957,3.2078,3216.9,3216.4,0.4854]
[1736934396263,0.311,3216.5,3216.4,0.4854]
[1736934396656,0.311,3216.6,3216.4,0.4854]
[1736934396862,0.311,3216.5,3216.4,0.4854]
[1736934397168,0.31101,3216.4,3216.2,40.8]
[1736934398259,5.65886609,3216.9,3216.2,40.8]
[1736934398456,0.31101,3216.4,3216.2,40.8]
[1736934398656,5.65886609,3216.9,3216.2,40.8]
[1736934398965,0.31101,3216.5,3216.2,41.11103]
[1736934399963,0.31101,3216.5,3216.2,40.8]
[1736934400365,5.65886609,3216.9,3216.2,40.8]
[1736934400572,0.31101,3216.5,3216.2,40.8]
[1736934400865,0.31101,3216.5,3216.2,41.11102]
[1736934401061,5.65886609,3216.9,3216.2,40.8]
[1736934401365,0.31102,3216.3,3216.2,40.8]
[1736934401757,0.31107,3215.8,3215.5,3.2078]
[1736934401968,0.31107,3215.8,3215.6,0.9575]
[1736934402264,0.31107,3215.8,3215.7,40.8]
[1736934403865,2.45106609,3216.0,3215.7,40.8]
[1736934404065,0.31106,3215.9,3215.7,40.8]
[1736934405162,3.2078,3215.9,3215.7,40.8]
[1736934405362,3.51886,3215.9,3215.7,40.8]
[1736934405564,0.31107,3215.8,3215.7,40.8]
[1736934405962,0.31107,3215.8,3215.5,0.9392]
[1736934405963,3.58995887,3215.8,3215.1,3.2078]
[1736934406158,0.3111,3215.6,3215.2,0.31112]
[1736934406464,0.3111,3215.6,3215.3,40.8]
[1736934407162,0.3111,3215.6,3215.3,41.11112]
[1736934407365,2.45106609,3215.7,3215.3,40.8]
[1736934407869,0.31109,3215.6,3215.3,40.8]
[1736934408064,3.2078,3215.9,3215.3,40.8]
[1736934408363,3.5095694,3215.8,3215.5,0.31109]
[1736934408560,3.5095694,3215.8,3215.7,0.31108]
[1736934408763,3.2078,3215.9,3215.8,0.31107]
[1736934409171,3.2078,3215.9,3215.8,41.11107]
[1736934409763,3.2078,3215.9,3215.8,40.8]
[1736934409968,3.51886,3215.9,3215.8,40.8]
[1736934410266,0.31109,3215.6,3215.5,0.00247658]
[1736934410568,2.76215609,3215.6,3215.5,0.00247658]
[1736934410865,6.16472416,3215.6,3215.5,0.00247658]
[1736934411261,11.16472416,3215.6,3215.5,0.00247658]
[1736934413575,6.16472416,3215.6,3215.5,0.00247658]
[1736934415661,5.85363416,3215.6,3215.5,0.00247658]
[1736934415876,6.16472416,3215.6,3215.5,0.00247658]
[1736934417574,11.16472416,3215.6,3215.5,0.00247658]
[1736934418274,6.16472416,3215.6,3215.5,0.00247658]
[1736934420174,11.16472416,3215.6,3215.5,6.58e-06]
[1736934420373,11.16472416,3215.6,3213.6,5.91346395]
[1736934420374,0.3112,3214.4,3214.3,1.4085]
[1736934420574,5.97006609,3214.4,3214.3,1.4085]
[1736934420879,5.97006609,3214.4,3213.6,3.2078]
[1736934420880,8.99896944,3214.4,3213.6,3.2078]
[1736934421068,0.31125,3213.9,3213.8,0.9525]
[1736934421272,3.2078,3213.9,3213.2,4.87822642]
[1736934421577,3.2078,3213.3,3212.6,4.87822642]
[1736934421880,2.45106609,3212.7,3212.6,4.87822642]
[1736934422171,2.76243609,3212.7,3212.6,4.87822642]
[1736934422483,11.0798181,3212.7,3212.6,4.87822642]
[1736934422675,10.7684481,3212.7,3211.4,4.87822642]
[1736934422976,0.31147,3211.7,3211.4,4.87822642]
[1736934423171,2.45106609,3211.8,3211.4,4.87822642]
[1736934423375,5.97034609,3211.5,3211.4,4.87822642]
[1736934423574,3.58766948,3211.7,3211.4,7.32929251]
[1736934423771,5.65886609,3212.7,3211.6,3.2078]
[1736934423974,5.65886609,3212.7,3212.2,0.31142]
[1736934424181,2.45106609,3212.4,3212.0,3.2078]
[1736934424382,9.01144133,3212.7,3211.7,3.2078]
[1736934424574,2.45106609,3213.0,3212.1,3.2078]
[1736934424775,2.45106609,3212.7,3212.1,3.2078]
[1736934425075,8.91582,3212.7,3212.1,3.2078]
[1736934425275,3.2078,3212.3,3212.0,1.245]
[1736934425478,3.2078,3212.3,3211.6,3.2078]
[1736934425678,0.24798673,3212.2,3211.6,3.2078]
[1736934425876,0.24798673,3212.2,3211.8,0.31145]
[1736934426185,0.31145,3211.9,3211.6,3.2078]
[1736934426479,0.31143,3212.1,3211.6,3.2078]
[1736934426874,3.2283075,3212.2,3211.6,3.2078]
[1736934427278,0.31145,3211.9,3211.6,3.2078]
[1736934427478,0.31145,3211.9,3211.5,0.9442]
[1736934427781,3.2283075,3212.2,3211.5,0.9442]
[1736934427976,0.31144,3212.0,3211.5,0.9442]
[1736934428282,3.2283075,3212.2,3211.5,0.9442]
[1736934428592,0.31143,3212.1,3211.5,0.9442]
[1736934428882,0.31147,3211.7,3211.2,6.14676311]
[1736934429182,0.31146,3211.8,3211.2,6.45827311]
[1736934429383,3.51925,3211.9,3211.3,0.3115]
[1736934429685,3.51925,3211.9,3211.2,6.14676311]
[1736934429686,3.60353823,3211.8,3211.2,6.14676311]
[1736934429887,3.91499823,3211.8,3211.2,6.45827311]
[1736934430180,3.91499823,3211.8,3211.3,0.3115]
[1736934430883,3.60353823,3211.8,3211.2,6.14676311]
[1736934431179,0.31147,3211.7,3211.2,6.45827311]
[1736934431477,3.91499823,3211.8,3211.3,0.3115]
[1736934431684,0.31147,3211.7,3211.2,6.45827311]
[1736934431886,3.60353823,3211.8,3211.3,0.3115]
[1736934432282,3.2078,3211.9,3211.3,0.3115]
[1736934432484,0.31146,3211.8,3211.4,40.8]
[1736934432684,3.25513358,3211.7,3211.4,40.8]
[1736934433086,3.2078,3211.9,3211.4,40.8]
[1736934433487,3.38602406,3211.7,3211.4,40.8]
[1736934433680,3.69748406,3211.8,3211.4,40.8]
[1736934433877,3.2078,3211.9,3211.4,40.8]
[1736934434182,3.88917303,3211.7,3211.4,40.8]
[1736934434483,3.2078,3211.9,3211.4,40.8]
[1736934434785,0.31148,3211.5,3211.4,40.8]
[1736934435183,6.54295882,3211.8,3211.4,40.8]
[1736934435379,0.31146,3211.7,3211.4,40.8]